bitfinex/quotes_ETHUSD_20250725
["timestamp","ask_amount","ask_price","bid_price","bid_amount"]
[1753403524209,0.4497,3682.3,3682.1,0.005]
[1753403524409,4.294,3682.2,3682.1,0.005]
[1753403526507,7.92916774,3682.2,3682.1,0.005]
[1753403527430,8.74586774,3682.2,3682.1,0.005]
[1753403529324,0.136,3682.2,3682.1,0.005]
[1753403529542,4.43,3682.2,3682.1,0.005]
[1753403529926,7.14576774,3682.2,3682.1,0.005]
[1753403530285,8.06516774,3682.2,3682.1,0.005]
[1753403530418,1.0554,3682.2,3682.1,0.005]
[1753403530620,0.136,3682.2,3682.1,0.005]
[1753403530819,4.429,3682.2,3682.1,0.005]
[1753403531739,4.8787,3682.2,3682.1,0.005]
[1753403532129,5.3484,3682.2,3682.1,0.005]
[1753403533104,9.21719388,3682.2,3682.1,0.005]
[1753403533306,8.06416774,3682.2,3682.1,0.005]
[1753403535310,0.136,3682.2,3682.1,0.005]
[1753403535664,4.429,3682.2,3682.1,0.005]
[1753403537244,0.136,3682.2,3682.1,0.005]
[1753403537434,4.428,3682.2,3682.1,0.005]
[1753403537847,6.16172685,3682.2,3682.1,0.005]
[1753403538049,8.87749459,3682.2,3682.1,0.005]
[1753403538258,6.16172685,3682.2,3682.1,0.005]
[1753403538459,5.3721,3682.2,3682.1,0.005]
[1753403538621,8.08786774,3682.2,3682.1,0.005]
[1753403540221,3.79586774,3682.2,3682.1,0.005]
[1753403540481,2.85176774,3682.2,3682.1,0.005]
[1753403540664,8.08686774,3682.2,3682.1,0.005]
[1753403541045,8.88676774,3682.2,3682.1,0.005]
[1753403543441,8.42216774,3682.2,3682.1,0.005]
[1753403543640,7.14276774,3682.2,3682.1,0.005]
[1753403543851,8.08686774,3682.2,3682.1,0.005]
[1753403544532,0.136,3682.2,3682.1,0.005]
[1753403544938,4.426,3682.2,3682.1,0.005]
[1753403545165,0.136,3682.2,3682.1,0.005]
[1753403545375,0.002,3682.3,3682.1,0.005]
[1753403545376,0.002,3682.3,3682.2,2.71576774]
[1753403545677,4.292,3682.3,3682.2,5.73106774]
[1753403546082,0.85989791,3682.8,3682.7,2.71539902]
[1753403546378,4.29,3682.9,3682.8,5.71532529]
[1753403546543,0.002,3683.1,3683.0,2.71517784]
[1753403546868,4.292,3683.1,3683.0,2.85117784]
[1753403547779,4.292,3683.1,3683.0,2.86647784]
[1753403548163,0.002,3683.1,3683.0,2.86647784]
[1753403548367,4.291,3683.1,3683.0,2.86647784]
[1753403548538,0.002,3683.1,3683.0,2.86647784]
[1753403548735,0.002,3683.1,3683.0,7.44505661]
[1753403548964,4.291,3683.1,3683.0,7.41790484]
[1753403549160,4.291,3683.1,3683.0,7.41660484]
[1753403549458,4.291,3683.1,3683.0,3.136]
[1753403549659,4.291,3683.1,3682.3,0.0013]
[1753403549882,4.427,3683.1,3682.7,3.0]
[1753403550082,0.002,3683.1,3683.0,5.71517784]
[1753403550372,0.002,3683.1,3683.0,5.86647784]
[1753403550373,4.29,3683.1,3683.0,5.86647784]
[1753403550575,4.29,3683.1,3683.0,6.70935272]
[1753403551070,0.002,3683.1,3683.0,7.27465272]
[1753403552076,0.002,3683.1,3683.0,6.70935272]
[1753403553464,0.002,3683.1,3683.0,3.0]
[1753403553868,0.002,3683.1,3683.0,5.71517784]
[1753403554083,0.002,3683.1,3683.0,5.85117784]
[1753403554271,0.002,3683.1,3683.0,5.85247784]
[1753403554441,4.289,3683.1,3683.0,5.86647784]
[1753403554646,4.289,3683.1,3683.0,6.72465806]
[1753403555167,4.289,3683.1,3683.0,6.70935806]
[1753403555979,4.289,3683.1,3683.0,3.0]
[1753403557100,4.289,3683.1,3683.0,5.71517784]
[1753403557252,4.289,3683.1,3683.0,5.85117784]
[1753403557662,0.002,3683.1,3683.0,5.85117784]
[1753403558085,4.288,3683.1,3683.0,5.85117784]
[1753403558290,4.288,3683.1,3683.0,3.136]
[1753403558461,4.288,3683.1,3683.0,3.0]
[1753403559090,4.288,3683.1,3682.1,2.72077637]
[1753403559091,5.2321,3683.1,3682.1,2.72077637]
[1753403559294,0.136,3682.9,3682.2,0.57952464]
[1753403559585,0.02708942,3682.8,3682.4,3.0]
[1753403559789,3.19491841,3682.7,3682.3,0.136]
[1753403559993,2.71555042,3682.5,3682.1,0.005]
[1753403560177,0.136,3682.2,3682.1,0.005]
[1753403560383,2.87885716,3682.2,3682.1,0.005]
[1753403560585,5.25781782,3682.2,3682.1,0.005]
[1753403561196,4.421,3682.2,3682.1,0.005]
[1753403561762,4.421,3682.2,3682.1,2.7208415]
[1753403561763,0.136,3682.2,3682.1,2.7208415]
[1753403561963,4.285,3682.3,3682.1,3.18345841]
[1753403562168,4.286,3682.4,3682.3,2.71569399]
[1753403562376,4.286,3682.4,3682.3,3.55197767]
[1753403562582,4.286,3682.4,3682.3,3.68797767]
[1753403563397,4.285,3682.4,3682.3,3.98758368]
[1753403563900,4.285,3682.4,3682.3,6.70323719]
[1753403564103,0.136,3683.2,3682.9,2.71517935]
[1753403564270,4.285,3683.0,3682.9,2.71525156]
[1753403564982,1.2404,3683.6,3683.0,2.71517784]
[1753403565189,4.287,3683.1,3683.0,2.71517784]
[1753403565401,0.002,3683.1,3683.0,6.28582802]
[1753403565578,1e-08,3683.1,3683.0,6.83712802]
[1753403566402,1e-08,3683.1,3682.9,0.136]
[1753403566613,2.71576774,3682.2,3682.1,0.005]
[1753403566778,8.74906774,3682.2,3682.1,0.005]
[1753403566978,8.74906774,3682.2,3680.1,2.71860146]
[1753403566979,6.0333,3682.2,3680.1,0.0013]
[1753403567182,6.0333,3682.2,3679.4,2.71779228]
[1753403567183,2.7163579,3681.4,3680.4,2.71706237]
[1753403567488,7.7898579,3681.4,3680.7,3.0]
[1753403567689,8.7258579,3681.4,3680.6,0.001]
[1753403567939,2.71665308,3681.0,3680.6,0.001]
[1753403568138,2.71654803,3681.2,3680.6,0.001]
[1753403568139,2.7168745,3680.7,3680.6,0.001]
[1753403568310,7.7903745,3680.7,3680.6,0.001]
[1753403568507,5.5497,3680.7,3680.6,0.001]
[1753403568712,5.221,3680.7,3680.6,0.001]
[1753403569228,7.9378745,3680.7,3680.6,0.001]
[1753403569414,8.5412045,3680.7,3680.6,0.001]
[1753403571229,1.53933,3680.7,3678.2,3.0]
[1753403571434,2.71709434,3680.5,3678.4,9.784907]
[1753403571615,4.286,3680.4,3678.6,0.55]
[1753403571810,2.71718519,3680.3,3678.7,0.5723]
[1753403572140,2.71731746,3680.1,3679.4,3.0]
[1753403572343,0.936,3680.2,3679.3,3.0]
[1753403572527,0.936,3680.2,3679.5,3.0]
[1753403572727,3.98147669,3680.1,3679.3,6.28969121]
[1753403572911,0.02708942,3680.0,3679.3,6.28969121]
[1753403573246,0.02708942,3680.0,3679.5,3.0]
[1753403573541,4.286,3679.9,3679.4,3.0]
[1753403573745,0.02708942,3679.8,3679.4,3.0]
[1753403573911,0.4598,3679.7,3679.3,3.0]
[1753403574114,0.4762,3679.6,3679.3,5.71789192]
[1753403574444,0.4598,3679.7,3678.5,2.71843338]
[1753403574445,4.286,3679.5,3679.2,3.0]
[1753403574739,0.4762,3680.0,3679.4,2.71776656]
[1753403574942,4.286,3679.9,3679.4,2.71776656]
[1753403575322,0.4762,3679.8,3679.4,2.71776656]
[1753403575536,0.4762,3679.8,3679.5,2.71773838]
[1753403575912,0.936,3679.7,3679.4,2.71782349]
[1753403576241,0.936,3679.6,3679.4,2.71782349]
[1753403576447,0.4762,3679.6,3679.4,2.71782349]
[1753403576830,4.287,3679.5,3679.4,2.71782349]
[1753403577010,0.136,3679.7,3679.5,2.71774756]
[1753403577440,4.287,3679.6,3679.5,2.71774756]
[1753403577840,0.136,3679.7,3679.5,2.71774756]
[1753403578044,4.287,3679.6,3679.5,2.71774756]
[1753403578247,4.287,3679.6,3679.2,3.136]
[1753403578451,4.287,3679.6,3676.5,0.42493843]
[1753403578452,0.936,3679.5,3678.1,0.55]
[1753403578634,0.936,3679.5,3678.9,0.136]
[1753403578635,0.136,3679.4,3678.9,0.136]
[1753403578841,0.936,3679.3,3678.9,0.136]
[1753403579056,0.136,3679.4,3678.9,3.136]
[1753403579057,0.936,3679.2,3678.9,3.136]
[1753403579353,4.287,3679.1,3678.9,2.85419775]
[1753403579560,4.287,3679.1,3679.0,2.71812992]
[1753403579758,5.223,3679.1,3679.0,2.71812992]
[1753403579973,5.223,3679.1,3678.9,0.136]
[1753403580112,4.7632,3679.1,3678.9,0.136]
[1753403580318,4.287,3679.1,3679.0,2.71812992]
[1753403580735,0.6122,3679.4,3679.0,2.71812992]
[1753403580958,4.288,3679.3,3678.9,0.136]
[1753403581142,0.936,3679.2,3678.9,0.136]
[1753403581355,0.936,3679.2,3678.0,0.50555331]
[1753403581356,0.84438942,3679.1,3678.8,2.71825141]
[1753403581681,2.71776342,3679.5,3678.1,2.71879503]
[1753403581682,0.8173,3679.5,3679.3,2.71786714]
[1753403581834,1.64870182,3680.3,3680.2,2.71724362]
[1753403582029,1.64870182,3680.3,3678.8,3.0]
[1753403582030,5.11940182,3680.3,3679.3,3.0023]
[1753403582231,5.11940182,3680.3,3679.5,0.55]
[1753403582473,5.11940182,3680.3,3678.6,0.001]
[1753403582474,0.936,3680.2,3678.6,0.001]
[1753403582641,5.14138942,3680.1,3678.6,0.001]
[1753403582845,2.71746514,3679.9,3678.6,0.001]
[1753403583182,3.54862504,3680.3,3678.6,0.001]
[1753403583183,3.53565159,3678.7,3678.6,0.001]
[1753403583348,7.83265159,3678.7,3678.6,0.001]
[1753403583537,8.76865159,3678.7,3678.6,0.001]
[1753403583731,6.0503,3678.7,3678.6,0.001]
[1753403583962,7.069,3679.1,3678.6,0.001]
[1753403584165,7.069,3679.1,3679.0,2.71812992]
[1753403584374,11.372,3679.1,3678.9,2.71818037]
[1753403584580,0.936,3679.0,3678.6,0.001]
[1753403584942,0.936,3678.9,3678.6,0.001]
[1753403585157,0.80558942,3678.8,3678.6,0.001]
[1753403585367,4.305,3678.7,3678.6,0.001]
[1753403585535,1.7145,3678.8,3678.7,2.71835159]
[1753403585734,1.2547,3678.8,3678.6,2.71940726]
[1753403585946,4.7802,3678.7,3678.6,0.001]
[1753403586237,7.069,3679.1,3679.0,2.71812992]
[1753403586438,7.069,3679.1,3678.6,2.71941902]
[1753403586439,12.309,3679.1,3678.6,2.71941902]
[1753403586758,0.96308942,3679.0,3678.8,2.71827769]
[1753403587070,0.936,3678.9,3678.6,0.001]
[1753403587278,0.936,3678.9,3678.8,2.71827769]
[1753403587739,0.936,3678.9,3678.7,2.71833071]
[1753403587936,7.069,3679.1,3679.0,2.71812992]
[1753403588160,11.8472,3679.1,3679.0,2.71812992]
[1753403588477,12.307,3679.1,3678.9,2.71818282]
[1753403588773,11.8308,3679.1,3679.0,2.71812992]
[1753403589082,0.8033,3679.0,3678.6,0.001]
[1753403589238,4.301,3678.9,3678.6,0.001]
[1753403589577,4.7772,3678.9,3678.6,2.71942079]
[1753403589771,4.301,3678.9,3678.8,2.71827769]
[1753403590164,4.7832,3679.8,3678.9,3.55]
[1753403590351,4.7832,3679.8,3678.9,0.55]
[1753403590676,4.7832,3679.8,3679.5,2.71771205]
[1753403590842,4.7832,3679.8,3678.9,3.55]
[1753403591049,0.4762,3680.2,3679.0,2.71811927]
[1753403591381,0.136,3680.0,3679.6,2.71766753]
[1753403591678,0.136,3680.0,3678.8,1.39855771]
[1753403591679,0.50328942,3679.9,3678.8,1.39855771]
[1753403591868,0.136,3679.7,3679.2,0.136]
[1753403592066,0.136,3679.7,3679.5,2.71775973]
[1753403592282,0.136,3679.7,3679.4,2.71783329]
[1753403592484,0.50328942,3679.6,3678.8,1.39625771]
[1753403592781,0.136,3679.4,3679.1,2.7179972]
[1753403593003,0.136,3679.4,3679.2,3.0]
[1753403593278,0.4762,3679.3,3678.8,3.136]
[1753403593478,0.4598,3679.3,3678.3,0.7809]
[1753403593672,0.136,3679.1,3678.8,5.71821735]
[1753403593869,0.136,3679.1,3678.6,0.137]
[1753403594079,0.136,3679.1,3678.8,2.71827685]
[1753403594246,0.4762,3679.0,3678.6,0.001]
[1753403594550,0.136,3678.7,3678.6,0.001]
[1753403595159,0.6122,3678.7,3678.6,0.001]
[1753403596061,4.307,3679.0,3678.7,2.71835159]
[1753403596389,0.136,3678.9,3678.8,2.71827769]
[1753403597086,0.136,3678.9,3678.6,0.001]
[1753403597271,0.6172,3678.9,3678.6,0.001]
[1753403597450,0.4812,3678.8,3678.7,5.71828673]
[1753403598079,0.4812,3678.8,3678.7,3.0]
[1753403598266,0.9436,3678.8,3678.7,3.0]
[1753403598780,0.4812,3678.8,3678.7,3.0]
[1753403598978,0.136,3678.9,3678.7,3.0]
[1753403598979,0.136,3678.9,3678.8,2.71827769]
[1753403599185,0.136,3678.9,3678.7,5.71833238]
[1753403599404,0.12012299,3678.8,3678.7,5.71833238]
[1753403599884,0.12012299,3678.8,3678.7,3.0]
[1753403600268,0.136,3678.9,3678.7,3.0]
[1753403600608,0.136,3678.9,3678.8,2.71827769]
[1753403600774,0.25618786,3678.9,3678.8,2.71827769]
[1753403601103,0.136,3678.9,3678.8,7.11204767]
[1753403601300,0.25621616,3679.7,3679.5,2.71775292]
[1753403601503,0.12021616,3679.6,3679.5,2.71775292]
[1753403602222,1.06381616,3679.6,3678.9,2.71815119]
[1753403602374,0.136,3679.2,3679.0,3.0]
[1753403602569,0.4812,3679.1,3678.9,3.0]
[1753403603184,0.4812,3679.1,3678.8,2.71825548]
[1753403603503,0.4812,3679.1,3678.8,2.71822236]
[1753403603669,0.4812,3679.1,3678.7,0.136]
[1753403603870,0.136,3679.2,3678.6,0.001]
[1753403603871,0.4812,3679.0,3678.6,0.001]
[1753403604077,0.4812,3679.0,3678.8,3.0]
[1753403604314,0.6172,3679.0,3678.8,3.0]
[1753403604480,0.6172,3679.0,3678.8,2.71827354]
[1753403605192,0.136,3679.0,3678.9,5.71820381]
[1753403605704,0.4812,3679.7,3679.2,2.71791558]
[1753403605906,0.136,3679.4,3679.1,3.0]
[1753403606110,0.12041676,3679.3,3679.2,2.71791558]
[1753403606828,0.12041676,3679.3,3678.8,5.7182349]
[1753403606829,2.71805604,3679.1,3678.6,0.001]
[1753403607125,2.71833029,3678.8,3678.6,0.001]
[1753403607322,0.12041676,3678.7,3678.6,0.001]
[1753403607618,0.60161676,3678.7,3678.6,0.001]
[1753403607804,3.78236835,3678.7,3678.6,0.001]
[1753403608322,4.45951569,3678.7,3678.6,0.001]
[1753403608488,5.23601569,3678.7,3678.6,0.001]
[1753403609116,4.75481569,3678.7,3678.6,0.001]
[1753403609280,5.20892627,3678.7,3678.6,0.001]
[1753403609618,5.23601569,3678.7,3678.6,0.001]
[1753403610404,5.20892627,3678.7,3678.6,0.001]
[1753403612092,2.49057468,3678.7,3678.6,0.001]
[1753403612293,4.09646835,3678.7,3678.6,0.001]
[1753403612621,4.55886835,3678.7,3678.6,0.001]
[1753403613329,4.55886835,3678.7,3677.9,0.001]
[1753403613330,4.55886835,3678.7,3677.9,1e-08]
[1753403613331,2.71886895,3678.0,3677.9,1e-08]
[1753403613625,2.71886895,3678.0,3676.0,0.499]
[1753403613626,3.48826045,3677.2,3676.0,0.499]
[1753403613925,5.85106902,3677.2,3676.0,0.499]
[1753403614131,2.72003075,3676.5,3676.0,0.499]
[1753403614417,3.78355117,3677.1,3676.0,0.499]
[1753403614418,0.1121392,3676.4,3676.0,0.499]
[1753403614586,0.56624978,3676.3,3676.2,2.7202002]
[1753403614929,0.08504978,3676.3,3676.2,2.7202002]
[1753403615082,0.08504978,3676.3,3676.1,2.7202522]
[1753403615283,0.4812,3676.2,3676.0,0.499]
[1753403615598,0.4812,3676.1,3676.0,0.499]
[1753403615925,0.4812,3676.1,3676.0,4.39299414]
[1753403616282,0.4812,3676.1,3676.0,0.499]
[1753403616496,0.9436,3676.1,3676.0,0.499]
[1753403616920,0.97068942,3676.1,3676.0,0.499]
[1753403617084,1.0796,3676.1,3676.0,0.499]
[1753403617284,0.6172,3676.1,3676.0,3.2193482]
[1753403617520,0.136,3676.1,3676.0,3.2193482]
[1753403618003,0.136,3676.1,3676.0,0.499]
[1753403618204,0.6172,3676.1,3676.0,0.499]
[1753403618417,0.6172,3676.1,3676.0,3.2193482]
[1753403618620,0.6172,3676.1,3676.0,0.499]
[1753403618918,1.0796,3676.1,3676.0,0.499]
[1753403619087,1.48667077,3676.1,3676.0,0.499]
[1753403619514,1.10668942,3676.1,3676.0,0.499]
[1753403619822,1.10668942,3676.1,3675.4,2.8567746]
[1753403620122,0.136,3675.7,3675.4,2.7207746]
[1753403620319,0.6172,3675.7,3675.6,2.72064424]
[1753403620530,0.136,3675.7,3675.6,2.72064424]
[1753403620722,0.136,3676.0,3675.7,2.72052431]
[1753403620921,0.136,3676.0,3675.9,2.7204222]
[1753403621425,0.6172,3676.0,3675.4,0.136]
[1753403621587,0.6172,3676.0,3675.4,2.72077911]
[1753403621588,0.85828942,3675.9,3675.4,2.72077911]
[1753403621800,2.72079229,3675.4,3675.0,1.148002]
[1753403621999,0.8094,3675.2,3675.0,1.012002]
[1753403622221,2.72101439,3675.1,3675.0,1.012002]
[1753403622409,0.9436,3675.1,3675.0,1.012002]
[1753403622610,0.8094,3675.2,3675.0,1.012002]
[1753403622899,0.4812,3675.2,3675.0,1.012002]
[1753403623095,0.4812,3675.1,3675.0,1.012002]
[1753403623529,4.313,3675.5,3675.4,0.001]
[1753403623733,5.76884,3675.5,3675.4,0.001]
[1753403624027,5.30644,3675.5,3675.4,0.001]
[1753403624233,4.8122,3675.9,3675.4,0.001]
[1753403624537,0.4812,3675.5,3675.4,0.001]
[1753403624702,0.4812,3675.8,3675.7,2.72057023]
[1753403625235,0.86392176,3676.2,3676.1,2.7202742]
[1753403626427,1.34272176,3676.2,3675.5,2.72071826]
[1753403626627,0.50588942,3676.1,3675.4,0.001]
[1753403627030,3.510076,3676.0,3675.4,0.001]
[1753403627192,0.7897,3676.0,3675.4,0.001]
[1753403627526,0.7897,3676.0,3675.7,2.72055392]
[1753403627728,0.7897,3676.0,3675.5,2.72071547]
[1753403627933,1.2685,3676.0,3675.6,2.72058857]
[1753403628108,0.4788,3675.9,3675.7,2.72054849]
[1753403628313,0.4788,3675.9,3675.4,0.001]
[1753403628513,0.4788,3675.9,3675.7,2.72053199]
[1753403629110,0.7897,3676.0,3675.6,2.72062249]
[1753403629313,0.4788,3675.9,3675.6,2.72062249]
[1753403629520,0.4788,3675.8,3675.5,2.72069364]
[1753403629939,0.4788,3675.8,3675.6,2.72064424]
[1753403630140,0.4788,3675.8,3675.5,2.72066523]
[1753403630521,0.4788,3675.8,3675.6,2.72063184]
[1753403630841,0.86392176,3676.2,3676.1,2.7202742]
[1753403631340,0.86392176,3676.2,3676.1,6.1576742]
[1753403631504,4.8068,3677.2,3676.7,2.71983025]
[1753403631706,0.4788,3677.1,3676.7,2.71983025]
[1753403631905,0.136,3676.8,3676.1,3.0]
[1753403632142,0.136,3676.2,3675.6,0.136]
[1753403632341,0.136,3676.2,3676.0,2.72033573]
[1753403632639,0.136,3676.2,3675.6,0.49798685]
[1753403632640,0.93688942,3676.1,3675.4,0.001]
[1753403632807,0.9098,3676.1,3675.4,0.001]
[1753403633007,0.136,3675.7,3675.6,2.72064424]
[1753403634028,4.331,3676.2,3676.1,2.7202742]
[1753403634229,4.467,3676.2,3676.1,2.7202742]
[1753403634431,5.87138,3676.2,3675.6,3.136]
[1753403634610,5.87138,3676.2,3675.4,0.001]
[1753403634611,0.136,3675.7,3675.4,0.001]
[1753403634810,0.4788,3676.1,3675.4,0.001]
[1753403635029,0.136,3675.8,3675.4,0.001]
[1753403635229,0.136,3675.9,3675.6,2.7205883]
[1753403635434,0.136,3675.9,3675.5,2.72069169]
[1753403635748,0.6148,3675.9,3675.6,2.72064117]
[1753403636037,0.6148,3675.9,3675.7,2.72050652]
[1753403636038,0.136,3675.9,3675.7,2.72050652]
[1753403636211,0.136,3675.9,3675.4,0.001]
[1753403636612,0.4788,3675.8,3675.4,0.001]
[1753403636841,0.4788,3675.8,3675.4,2.72178217]
[1753403637046,0.4788,3675.8,3675.7,2.72057023]
[1753403637249,0.136,3675.9,3675.8,2.72049621]
[1753403638247,0.136,3676.1,3675.7,2.72052337]
[1753403638419,0.4788,3675.9,3675.8,2.72048401]
[1753403638620,0.136,3676.1,3675.9,2.72037142]
[1753403638851,0.136,3676.1,3675.7,2.72055835]
[1753403639219,0.6148,3676.1,3675.7,2.72055835]
[1753403639562,0.4788,3676.0,3675.6,2.85662738]
[1753403639765,0.4788,3675.9,3675.6,3.136]
[1753403639934,0.4788,3675.9,3675.5,3.0]
[1753403639935,1.2919,3675.8,3675.5,3.0]
[1753403640113,0.4788,3675.7,3675.5,3.0]
[1753403640318,0.4788,3675.7,3675.5,2.72071583]
[1753403640556,0.4788,3675.7,3675.5,3.0]
[1753403640860,0.4788,3675.7,3675.4,0.001]
[1753403640861,0.4788,3675.6,3675.4,0.001]
[1753403641720,0.4788,3675.5,3675.4,0.001]
[1753403641982,0.6148,3675.5,3675.4,0.001]
[1753403642315,1.18859,3675.5,3675.4,0.001]
[1753403642519,1.21567942,3675.5,3675.4,0.001]
[1753403643560,1.18859,3675.5,3675.4,0.131]
[1753403643923,3.90930826,3675.5,3675.4,0.131]
[1753403644146,4.82088335,3675.5,3675.4,0.131]
[1753403644318,2.72101439,3675.1,3675.0,1.012002]
[1753403644518,9.46750824,3675.1,3675.0,1.012002]
[1753403644931,1.4413,3675.1,3675.0,1.012002]
[1753403645154,0.136,3675.1,3675.0,1.012002]
[1753403646355,0.136,3675.1,3675.0,1.013002]
[1753403647459,0.6148,3675.1,3675.0,1.013002]
[1753403647859,0.7701,3675.9,3675.0,1.013002]
[1753403648026,0.136,3675.5,3675.3,2.72079612]
[1753403648229,0.136,3675.5,3675.4,2.72079229]
[1753403648639,0.136,3675.5,3675.3,2.72085287]
[1753403648839,0.136,3675.5,3675.2,2.72091669]
[1753403649039,0.136,3675.5,3675.3,2.72084863]
[1753403649235,0.136,3675.5,3675.2,2.72091859]
[1753403649468,0.136,3675.5,3675.0,4.17147874]
[1753403649469,0.45808942,3675.4,3675.0,1.013002]
[1753403649670,0.136,3675.1,3675.0,1.013002]
[1753403649975,0.6148,3675.1,3675.0,1.013002]
[1753403651050,0.6148,3675.1,3675.0,4.013002]
[1753403651754,0.6148,3675.1,3675.0,1.013002]
[1753403651965,0.136,3675.1,3675.0,1.013002]
[1753403652148,0.136,3675.1,3675.0,3.73409043]
[1753403652472,3.26941449,3677.3,3675.0,3.73409043]
[1753403652473,0.7955,3676.3,3675.1,4.3288]
[1753403652773,0.16308942,3676.2,3675.7,2.85651401]
[1753403652970,0.136,3676.2,3675.7,0.136]
[1753403653136,0.6148,3676.2,3675.9,2.72041977]
[1753403653330,0.6148,3676.2,3675.7,0.136]
[1753403653536,0.6148,3676.2,3675.9,2.72035428]
[1753403653786,0.6148,3676.2,3676.0,2.7203266]
[1753403654078,0.136,3676.2,3676.0,2.7203266]
[1753403654439,0.136,3676.2,3675.7,0.136]
[1753403654639,0.6148,3676.2,3675.7,2.85654962]
[1753403654837,0.6148,3676.2,3675.1,0.7788]
[1753403654838,0.93688942,3676.1,3675.1,0.7788]
[1753403655138,0.93688942,3676.1,3675.5,3.0]
[1753403655139,0.136,3675.7,3675.5,3.0]
[1753403655471,0.9193,3676.7,3676.0,2.72034335]
[1753403655637,0.08505375,3676.3,3676.2,2.7202002]
[1753403655972,0.136,3676.4,3676.3,2.72005665]
[1753403656172,0.22105375,3676.4,3676.3,2.72005665]
[1753403656357,0.136,3676.4,3676.3,2.72005665]
[1753403656668,0.136,3676.4,3676.2,2.72018236]
[1753403656872,0.136,3676.4,3676.3,2.72012621]
[1753403657039,0.136,3676.4,3676.2,2.72017768]
[1753403657236,0.08505375,3676.9,3676.3,2.72012621]
[1753403657440,0.136,3676.6,3676.5,2.71997824]
[1753403658235,0.90925375,3677.0,3676.5,2.71997824]
[1753403658236,0.08505375,3677.0,3676.8,2.71974292]
[1753403658441,0.136,3676.9,3676.7,2.71981597]
[1753403658974,0.136,3676.9,3676.6,2.71989869]
[1753403658975,0.6243,3676.9,3676.6,2.71989869]
[1753403659169,0.6243,3676.9,3676.6,2.71987929]
[1753403660389,0.136,3676.7,3675.9,0.136]
[1753403660592,0.4883,3676.8,3676.2,0.55]
[1753403660773,0.002,3677.1,3676.8,2.71969849]
[1753403661086,0.002,3677.1,3676.5,0.136]
[1753403661286,0.136,3677.0,3676.9,2.71968234]
[1753403661584,0.002,3677.1,3677.0,2.71960837]
[1753403661787,0.002,3677.1,3677.0,0.136]
[1753403662001,0.002,3677.1,3676.8,0.136]
[1753403662002,0.7931,3677.0,3676.8,0.136]
[1753403662293,0.4903,3677.1,3675.3,0.136]
[1753403662294,0.7931,3676.6,3675.3,0.136]
[1753403662594,0.7931,3676.6,3675.0,1.448202]
[1753403662595,0.136,3676.1,3675.4,0.5695]
[1753403662800,0.136,3676.1,3675.4,2.72077973]
[1753403662970,0.136,3675.9,3675.3,0.136]
[1753403663170,0.4883,3676.3,3675.3,2.72085581]
[1753403663171,0.136,3675.7,3675.3,2.72085581]
[1753403663373,0.51538942,3675.6,3675.3,3.0]
[1753403663573,0.6243,3675.5,3675.0,1.013002]
[1753403663775,0.4883,3675.4,3675.0,1.013002]
[1753403663983,0.136,3675.2,3675.0,1.013002]
[1753403664191,0.4883,3675.1,3675.0,1.013002]
[1753403664602,4.47290381,3675.1,3675.0,1.013002]
[1753403665409,4.44581439,3675.1,3675.0,1.013002]
[1753403667365,4.43881439,3675.1,3675.0,0.28490681]
[1753403667565,4.46590381,3675.1,3675.0,0.28490681]
[1753403667770,1.7178,3675.1,3675.0,0.28490681]
[1753403668067,6.0598,3675.1,3675.0,0.28490681]
[1753403668502,6.66578,3675.1,3675.0,0.28490681]
[1753403669168,0.4883,3675.4,3674.6,0.001]
[1753403669370,0.002,3677.0,3675.5,2.72071826]
[1753403669371,0.4365,3676.2,3675.5,2.72071826]
[1753403669608,0.4365,3676.2,3674.7,5.72131058]
[1753403669609,0.002,3676.2,3676.1,2.7202742]
[1753403670103,4.351,3676.2,3675.3,2.72086632]
[1753403670302,1.74078942,3676.1,3674.7,0.8294]
[1753403670504,1.25248942,3676.1,3675.6,2.72064368]
[1753403670706,0.9228,3676.0,3675.6,2.72064368]
[1753403671009,0.7903,3675.8,3675.6,2.72064368]
[1753403671208,0.7903,3675.8,3674.7,2.72131058]
[1753403671381,7.081,3676.2,3675.9,2.7204222]
[1753403671580,4.36,3676.1,3675.2,0.0272094]
[1753403671908,5.2828,3676.1,3674.9,3.0]
[1753403672105,5.2828,3676.1,3676.0,2.7203482]
[1753403672106,4.8483,3676.1,3676.0,2.7203482]
[1753403672274,0.002,3676.2,3676.1,2.7202742]
[1753403672673,4.365,3676.2,3676.1,5.7202742]
[1753403673111,0.002,3676.2,3676.1,5.7202742]
[1753403674435,4.363,3676.2,3676.1,5.7202742]
[1753403674992,0.002,3676.2,3676.1,5.7202742]
[1753403677600,0.002,3676.2,3676.1,7.69743644]
[1753403677815,1e-08,3676.2,3676.1,8.64843644]
[1753403678427,1e-08,3676.2,3676.1,0.99366224]
[1753403678627,2.72032374,3676.1,3674.7,0.7524]
[1753403678925,2.7204222,3675.9,3674.7,0.7524]
[1753403679126,0.51538942,3675.8,3675.5,2.72071414]
[1753403679428,0.4883,3675.7,3675.5,2.72071414]
[1753403679741,4.365,3675.6,3675.3,2.720813]
[1753403680047,4.365,3675.6,3675.3,3.0]
[1753403680349,0.4883,3675.5,3675.3,2.7208608]
[1753403681131,1e-08,3676.2,3675.7,2.72051906]
[1753403681441,1e-08,3676.2,3675.4,0.7986]